bitfinex/quotes_SOLUSD_20251226
["timestamp","ask_amount","ask_price","bid_price","bid_amount"]
[1766720740559,0.87,122.89,122.87,2.92499785]
[1766720740755,0.87,122.89,122.86,17.06499785]
[1766720741081,0.67,122.86,122.82,2.92499785]
[1766720741267,2.87499785,122.86,122.82,38.13739519]
[1766720741584,0.67,122.83,122.8,17.78499785]
[1766720742186,0.67,122.83,122.81,2.20499785]
[1766720742482,0.67,122.83,122.82,2.20499785]
[1766720742679,0.7,122.85,122.82,2.20499785]
[1766720742984,0.7,122.87,122.83,0.7]
[1766720743172,0.7,122.87,122.84,2.20499785]
[1766720744376,0.67,122.86,122.83,17.06499785]
[1766720744577,0.67,122.86,122.82,2.92499785]
[1766720744784,0.67,122.86,122.81,14.86]
[1766720744785,0.67,122.86,122.83,2.92499785]
[1766720745387,10.34444447,122.86,122.82,2.20499785]
[1766720745588,0.67,122.85,122.82,2.20499785]
[1766720746973,0.67,122.85,122.83,2.20499785]
[1766720750072,0.67,122.87,122.84,2.92499785]
[1766720750272,0.67,122.87,122.84,0.72]
[1766720750477,0.67,122.87,122.85,2.20499785]
[1766720751106,0.67,122.87,122.83,0.72]
[1766720751281,0.67,122.86,122.83,2.92499785]
[1766720751478,0.67,122.86,122.84,2.20499785]
[1766720752978,0.67,122.86,122.83,2.20499785]
[1766720753176,0.67,122.86,122.83,2.92499785]
[1766720754089,0.67,122.86,122.83,0.72]
[1766720754401,0.67,122.86,122.83,14.86]
[1766720754599,0.67,122.86,122.83,19.01848253]
[1766720754897,0.67,122.86,122.83,18.29848253]
[1766720755404,0.67,122.86,122.83,3.43848253]
[1766720756881,0.67,122.86,122.83,4.15848253]
[1766720757603,11.57796767,122.86,122.81,19.71966824]
[1766720757900,0.67,122.85,122.82,18.29848253]
[1766720758087,0.67,122.85,122.82,19.01848253]
[1766720759403,0.67,122.85,122.82,18.29848253]
[1766720759903,8.1400251,122.85,122.82,14.86]
[1766720760107,0.67,122.84,122.82,14.86]
[1766720762118,0.67,122.84,122.82,18.29848253]
[1766720762288,8.8100251,122.85,122.82,19.01848253]
[1766720762482,0.67,122.85,122.82,19.01848253]
[1766720763123,0.67,122.85,122.83,4.15848253]
[1766720763292,8.80954052,122.86,122.83,4.15848253]
[1766720764012,8.80954052,122.86,122.83,0.72]
[1766720764186,8.80954052,122.86,122.83,4.15848253]
[1766720767417,8.80954052,122.86,122.83,0.72]
[1766720768614,8.80954052,122.86,122.83,4.15848253]
[1766720769720,0.67,122.86,122.83,3.43848253]
[1766720770021,4.10848253,122.87,122.84,0.72]
[1766720770315,0.67,122.86,122.83,0.72]
[1766720771315,8.80937628,122.86,122.83,0.72]
[1766720772596,8.80937628,122.86,122.83,4.15848253]
[1766720773817,0.67,122.85,122.82,3.43848253]
[1766720774015,8.13897958,122.87,122.84,3.43848253]
[1766720774222,0.68,122.86,122.83,4.14848253]
[1766720774595,0.68,122.86,122.83,0.71]
[1766720775197,0.68,122.86,122.83,4.14848253]
[1766720775395,0.68,122.85,122.82,0.71]
[1766720775716,0.68,122.86,122.83,4.14848253]
[1766720776232,0.68,122.86,122.84,3.43848253]
[1766720776428,0.68,122.87,122.84,4.14848253]
[1766720776805,22.69446411,122.88,122.85,0.71]
[1766720777008,0.2,122.89,122.87,0.71]
[1766720777514,0.2,122.89,122.86,4.14848253]
[1766720777515,6.30625438,122.89,122.86,4.14848253]
[1766720777726,0.88,122.89,122.86,4.14848253]
[1766720778100,0.88,122.89,122.87,3.43848253]
[1766720778297,0.88,122.89,122.86,0.71]
[1766720778522,0.88,122.89,122.87,3.43848253]
[1766720780536,0.2,122.89,122.87,4.14848253]
[1766720780704,0.88,122.89,122.87,0.71]
[1766720780903,0.88,122.89,122.87,4.14848253]
[1766720781404,0.88,122.89,122.87,3.43848253]
[1766720784032,0.2,122.89,122.87,4.14848253]
[1766720785039,0.88,122.89,122.86,3.43848253]
[1766720785243,0.88,122.89,122.86,4.14848253]
[1766720785618,0.88,122.89,122.87,3.43848253]
[1766720785942,0.88,122.89,122.86,4.14848253]
[1766720786128,0.2,122.89,122.88,4.14848253]
[1766720786520,0.88,122.89,122.87,0.71]
[1766720787039,3.43848253,122.9,122.88,4.14848253]
[1766720787040,0.68,122.9,122.88,4.14848253]
[1766720787222,0.68,122.9,122.88,3.43848253]
[1766720789245,8.13628114,122.91,122.89,3.43848253]
[1766720789449,0.68,122.91,122.87,8.84846041]
[1766720789638,0.68,122.91,122.88,3.43848253]
[1766720789826,10.43767296,122.92,122.9,3.43848253]
[1766720790150,0.88,122.93,122.91,3.43848253]
[1766720791248,0.2,122.94,122.92,4.14848253]
[1766720791453,0.2,122.94,122.92,3.43848253]
[1766720791627,0.88,122.94,122.91,4.14848253]
[1766720793023,0.88,122.94,122.92,3.43848253]
[1766720793718,0.1,122.96,122.93,4.14848253]
[1766720793929,0.1,122.96,122.95,3.43848253]
[1766720794127,0.1,122.97,122.95,3.43848253]
[1766720794331,0.1,122.97,122.96,3.43848253]
[1766720794531,0.2,122.98,122.96,3.43848253]
[1766720794743,0.88,122.98,122.97,3.43848253]
[1766720794963,0.2,122.99,122.97,3.43848253]
[1766720795249,0.1,123.0,122.98,3.43848253]
[1766720795559,0.1,123.0,122.99,3.43848253]
[1766720796031,0.1,123.0,122.97,3.43848253]
[1766720796446,0.1,123.0,122.96,0.71]
[1766720796758,0.1,123.0,122.97,3.43848253]
[1766720796927,0.78,123.0,122.97,3.43848253]
[1766720797124,0.78,123.0,122.97,4.14848253]
[1766720797324,0.78,123.0,122.98,3.43848253]
[1766720797662,0.68,123.01,122.99,3.43848253]
[1766720797837,0.78,123.02,123.0,3.43848253]
[1766720798018,0.78,123.02,122.98,15.57]
[1766720798019,0.68,123.01,122.98,3.43848253]
[1766720798223,0.68,123.01,122.99,3.43848253]
[1766720798448,0.78,123.02,122.99,4.14848253]
[1766720798831,0.78,123.02,123.0,3.43848253]
[1766720799143,0.78,123.02,122.99,4.14848253]
[1766720799951,0.1,123.02,122.99,4.14848253]
[1766720800625,0.78,123.02,122.99,19.00848253]
[1766720802155,0.1,123.02,122.99,19.00848253]
[1766720802530,0.1,123.02,123.0,0.71]
[1766720803449,0.1,123.02,123.0,3.43848253]
[1766720803652,0.1,123.02,123.0,0.71]
[1766720803860,0.68,123.01,122.99,14.86]
[1766720804031,4.13848253,123.01,122.99,14.86]
[1766720804229,4.13848253,123.01,122.98,0.7]
[1766720804441,12.26822993,123.01,122.98,15.56]
[1766720804654,0.7,123.01,122.98,18.99848253]
[1766720806756,0.7,123.01,122.98,15.56]
[1766720807060,0.7,123.01,122.98,18.99848253]
[1766720808160,4.13848253,123.01,122.98,15.56]
[1766720808556,0.7,123.01,122.98,15.56]
[1766720808858,0.7,123.01,122.98,18.99848253]
[1766720809156,4.23848253,123.02,122.99,0.7]
[1766720809531,0.8,123.02,122.99,4.13848253]
[1766720809936,0.1,123.02,122.99,4.13848253]
[1766720810139,0.1,123.02,122.99,0.7]
[1766720810355,0.1,123.02,122.99,4.13848253]
[1766720810655,0.1,123.02,123.0,0.7]
[1766720811363,18.56538348,123.04,123.0,18.97848253]
[1766720811364,4.13848253,123.04,123.0,18.97848253]
[1766720811656,3.43848253,123.03,123.0,15.54]
[1766720812961,0.7,123.03,123.0,18.97848253]
[1766720813259,12.26552228,123.05,123.01,4.13848253]
[1766720813463,12.26552228,123.05,123.01,0.7]
[1766720813654,12.26552228,123.05,123.01,4.13848253]
[1766720814645,8.82703975,123.05,123.01,4.13848253]
[1766720814967,12.26552228,123.05,123.01,4.13848253]
[1766720815141,0.7,123.04,123.01,4.13848253]
[1766720815666,0.7,123.04,123.01,0.7]
[1766720815838,4.13848253,123.03,123.0,15.54]
[1766720816044,2.89497601,123.03,123.0,17.73497601]
[1766720816343,0.7,123.03,123.0,17.73497601]
[1766720817364,0.7,123.03,123.0,2.89497601]
[1766720819172,11.02319968,123.03,123.0,0.7]
[1766720819375,10.32319968,123.03,122.97,8.13177934]
[1766720819582,0.7,123.01,122.98,17.73497601]
[1766720819866,2.89497601,123.01,122.98,0.7]
[1766720820073,0.7,123.01,122.98,2.89497601]
[1766720820677,0.7,123.01,122.98,0.7]
[1766720820860,0.7,123.01,122.98,2.89497601]
[1766720821961,0.7,123.0,122.96,28.17264897]
[1766720822387,0.7,123.0,122.93,40.65613613]
[1766720822388,2.19497601,122.98,122.94,0.7]
[1766720822560,0.7,122.97,122.93,25.86940063]
[1766720822871,0.7,122.95,122.92,2.19497601]
[1766720823175,2.89497601,122.95,122.92,14.84]
[1766720823471,0.7,122.93,122.9,14.84]
[1766720823666,0.7,122.93,122.9,17.73497601]
[1766720824579,0.7,122.93,122.9,15.54]
[1766720824767,0.7,122.93,122.9,17.73497601]
[1766720825166,0.7,122.96,122.92,2.19497601]
[1766720825484,0.7,122.95,122.92,2.19497601]
[1766720825774,11.02858298,122.95,122.91,2.89497601]
[1766720825982,0.7,122.93,122.89,0.7]
[1766720826164,2.19497601,122.93,122.89,17.73497601]
[1766720826370,2.89497601,122.93,122.9,0.7]
[1766720826570,2.89497601,122.93,122.89,17.73497601]
[1766720826884,0.7,122.92,122.89,17.73497601]
[1766720827087,0.7,122.92,122.89,2.19497601]
[1766720827285,2.19497601,122.94,122.9,2.19497601]
[1766720827586,2.89497601,122.94,122.9,2.89497601]
[1766720828252,8.83360697,122.95,122.92,2.19497601]
[1766720828454,0.7,122.95,122.92,2.19497601]
[1766720828968,0.7,122.95,122.92,2.89497601]
[1766720829170,0.7,122.95,122.93,2.19497601]
[1766720829560,0.7,122.95,122.92,2.89497601]
[1766720830083,0.7,122.96,122.93,2.19497601]
[1766720830283,11.02660656,122.98,122.94,0.7]
[1766720830460,11.02660656,122.98,122.94,2.89497601]
[1766720830782,8.83163055,122.98,122.94,2.89497601]
[1766720830976,0.7,122.97,122.94,2.89497601]
[1766720831171,0.7,122.97,122.93,8.83469279]
[1766720831380,0.7,122.97,122.93,11.0296688]
[1766720832487,0.7,122.97,122.94,2.19497601]
[1766720832686,8.83262918,122.97,122.94,2.19497601]
[1766720832879,2.19497601,122.96,122.91,8.13589941]
[1766720833056,2.89497601,122.94,122.91,0.7]
[1766720833760,0.7,122.94,122.91,2.89497601]
[1766720835882,10.32840332,122.95,122.91,2.89497601]
[1766720835883,11.03840332,122.95,122.91,2.89497601]
[1766720836479,10.43767296,122.96,122.93,2.19497601]
[1766720836480,19.28046782,122.96,122.93,2.19497601]
[1766720836787,19.28046782,122.96,122.92,2.86497601]
[1766720837466,0.71,122.96,122.93,2.19497601]
[1766720837664,2.19497601,122.97,122.94,0.67]
[1766720837867,13.34264897,122.98,122.94,2.86497601]
[1766720838071,2.90497601,122.97,122.94,0.67]
[1766720838868,21.47447063,122.98,122.94,2.86497601]
[1766720839592,21.47447063,122.98,122.94,0.67]
[1766720839758,2.19497601,122.97,122.94,0.67]
[1766720841591,10.32707858,122.97,122.94,0.67]
[1766720841790,2.90497601,122.95,122.91,2.86497601]
[1766720842003,8.13210257,122.97,122.91,0.67]
[1766720842004,2.90497601,122.94,122.91,0.67]
[1766720842780,0.71,122.94,122.91,0.67]
[1766720842986,2.90497601,122.94,122.91,0.67]
[1766720843865,11.03914196,122.94,122.9,17.72497601]
[1766720844884,2.90497601,122.94,122.9,17.05497601]
[1766720845090,2.90497601,122.94,122.91,0.67]
[1766720845468,11.03922017,122.94,122.9,17.05497601]
[1766720845771,11.03922017,122.94,122.9,17.72497601]
[1766720846183,8.84424416,122.94,122.9,17.72497601]
[1766720846396,0.71,122.94,122.91,0.67]
[1766720846891,0.71,122.94,122.91,2.86497601]
[1766720847093,0.71,122.94,122.91,0.67]
[1766720847394,0.71,122.94,122.91,2.86497601]
[1766720848465,0.71,122.95,122.92,2.19497601]
[1766720848798,14.86,122.97,122.94,2.86497601]
[1766720848799,10.43767296,122.97,122.94,2.86497601]
[1766720848989,0.71,122.98,122.95,2.19497601]
[1766720849375,0.71,122.98,122.94,0.67]
[1766720849579,2.90497601,122.98,122.94,2.86497601]
[1766720851074,11.03673471,122.98,122.94,2.86497601]
[1766720852582,2.19497601,122.97,122.94,0.67]
[1766720852885,8.8417587,122.98,122.94,0.67]
[1766720853092,2.19497601,122.97,122.94,0.67]
[1766720854179,11.03707239,122.97,122.94,0.67]
[1766720854700,2.90497601,122.95,122.92,0.67]
[1766720855486,2.90497601,122.96,122.92,2.86497601]
[1766720856703,2.90497601,122.95,122.92,0.67]
[1766720857008,0.71,122.95,122.92,0.67]
[1766720857204,2.90497601,122.96,122.92,2.86497601]
[1766720858504,11.03810591,122.96,122.92,2.86497601]
[1766720860788,11.03810591,122.96,122.9,14.86]
[1766720860789,2.19497601,122.94,122.9,2.86497601]
[1766720860985,0.71,122.93,122.89,2.19497601]
[1766720861190,0.71,122.92,122.89,2.86497601]
[1766720862833,10.33041908,122.92,122.88,2.89497601]
[1766720863149,0.71,122.9,122.86,23.89908518]
[1766720863437,0.71,122.9,122.86,26.09406119]
[1766720863607,0.71,122.9,122.86,25.39406119]
[1766720863808,0.71,122.9,122.87,0.7]
[1766720864009,0.71,122.9,122.87,2.89497601]
[1766720865131,0.71,122.9,122.87,11.03358519]
[1766720865334,8.81544307,122.92,122.89,2.85497601]
[1766720865629,8.13495683,122.93,122.9,2.85497601]
[1766720866126,8.81495683,122.93,122.9,2.85497601]
[1766720866316,11.00993284,122.93,122.9,0.66]
[1766720866916,11.00993284,122.93,122.89,2.85497601]
[1766720867427,2.87497601,122.92,122.89,0.66]
[1766720868214,0.68,122.92,122.89,2.85497601]
[1766720868427,0.68,122.92,122.9,2.19497601]
[1766720869404,8.13495683,122.93,122.9,0.66]
[1766720869940,10.32993284,122.93,122.9,0.66]
[1766720870346,8.13495683,122.93,122.9,2.85497601]
[1766720870548,8.81495683,122.93,122.9,2.85497601]
[1766720871946,11.00993284,122.93,122.9,0.66]
[1766720874051,8.13495683,122.93,122.9,2.19497601]
[1766720874237,0.68,122.92,122.89,2.85497601]
[1766720874441,2.87497601,122.92,122.88,2.85497601]
[1766720875451,0.68,122.91,122.88,2.85497601]
[1766720876216,0.68,122.91,122.88,2.19497601]
[1766720876430,10.33080429,122.92,122.88,2.85497601]
[1766720876624,0.68,122.91,122.88,2.85497601]
[1766720876921,2.87497601,122.91,122.88,0.66]
[1766720878154,4.11623883,122.91,122.88,0.66]
[1766720879138,0.68,122.91,122.88,4.09623883]
[1766720879838,8.81431672,122.94,122.9,3.43623883]
[1766720880053,0.68,122.93,122.9,4.09623883]
[1766720880271,0.68,122.91,122.88,4.09623883]
[1766720880464,4.11623883,122.92,122.88,0.66]
[1766720880661,0.68,122.91,122.88,0.66]
[1766720881340,0.68,122.91,122.88,4.09623883]
[1766720883855,0.68,122.93,122.89,0.66]
[1766720884051,3.43623883,122.93,122.89,0.66]
[1766720884237,4.11623883,122.91,122.87,0.66]
[1766720884436,0.68,122.9,122.87,15.52]
[1766720884946,4.11623883,122.9,122.87,15.52]
[1766720885339,3.43623883,122.88,122.86,0.2]
[1766720885664,4.11623883,122.87,122.86,0.2]
[1766720886053,4.11623883,122.87,122.85,0.2]
[1766720886360,12.25492199,122.87,122.85,0.2]
[1766720886553,4.11623883,122.86,122.83,14.86]
[1766720887442,4.11623883,122.86,122.82,4.09623883]
[1766720887443,3.43623883,122.86,122.82,4.09623883]
[1766720887645,0.68,122.83,122.79,11.57999931]
[1766720887859,4.11623883,122.85,122.81,0.66]
[1766720888066,4.11623883,122.85,122.81,4.09623883]
[1766720888395,0.68,122.85,122.82,4.09623883]
[1766720888662,8.82010785,122.85,122.82,0.66]
[1766720888866,8.82010785,122.85,122.82,4.09623883]
[1766720889363,22.69304021,122.87,122.83,4.09623883]
[1766720889570,22.69304021,122.87,122.83,0.66]
[1766720889746,22.69304021,122.87,122.83,4.09623883]
[1766720890469,4.11623883,122.85,122.81,4.09623883]
[1766720890655,4.11623883,122.84,122.8,4.09623883]
[1766720891259,38.92350928,122.87,122.81,4.09623883]
[1766720891260,4.11623883,122.85,122.81,4.09623883]
[1766720892358,12.25647586,122.85,122.81,0.66]
[1766720892556,12.25647586,122.85,122.81,4.09623883]
[1766720893270,0.68,122.84,122.81,0.66]
[1766720893470,0.68,122.82,122.79,4.09623883]
[1766720894174,4.10623883,122.83,122.79,4.09623883]
[1766720894373,12.2480023,122.83,122.79,0.66]
[1766720894562,4.10623883,122.82,122.79,0.66]
[1766720895582,8.14176347,122.83,122.78,18.49623883]
[1766720895583,4.10623883,122.8,122.78,0.2]
[1766720895755,11.5780023,122.83,122.79,3.43623883]
[1766720895955,4.10623883,122.83,122.8,0.72]
[1766720896276,4.10623883,122.82,122.78,19.21623883]
[1766720896685,12.24856522,122.82,122.78,19.21623883]
[1766720896852,4.10623883,122.81,122.78,0.92]
[1766720897776,0.67,122.8,122.78,0.2]
[1766720898085,3.43623883,122.79,122.78,0.2]
[1766720898289,3.43623883,122.79,122.77,0.2]
[1766720898469,4.10623883,122.79,122.77,0.2]
[1766720898784,4.10623883,122.78,122.77,0.2]
[1766720898980,4.10623883,122.78,122.75,0.72]
[1766720898981,12.25088779,122.78,122.75,0.72]
[1766720899283,12.25088779,122.78,122.74,4.15623883]
[1766720899860,10.43767296,122.81,122.75,8.14644932]
[1766720900054,3.43623883,122.8,122.74,0.72]
[1766720900260,8.14265939,122.81,122.75,4.15623883]
[1766720900261,0.67,122.79,122.75,4.15623883]
[1766720900467,0.67,122.79,122.76,3.43623883]
[1766720901284,8.81402574,122.79,122.75,0.72]
[1766720901593,8.81402574,122.79,122.76,3.43623883]
[1766720901769,40.69760002,122.86,122.76,3.43623883]
[1766720901770,0.67,122.83,122.79,0.72]
[1766720901981,8.81000814,122.85,122.82,3.43623883]
[1766720903661,8.81000814,122.85,122.79,23.00384371]
[1766720903662,10.43767296,122.86,122.83,3.43623883]
[1766720903885,10.43767296,122.86,122.84,3.43623883]
[1766720904091,10.43767296,122.86,122.83,4.15623883]
[1766720905282,18.57707133,122.86,122.83,4.15623883]
[1766720909187,19.24707133,122.86,122.83,3.43623883]
[1766720909371,0.67,122.85,122.82,3.43623883]
[1766720909572,40.68668867,122.9,122.8,8.1430971]
[1766720909573,20.34174125,122.9,122.84,4.15623883]
[1766720909776,0.67,122.88,122.86,3.43623883]
[1766720910670,11.10767296,122.89,122.86,3.43623883]
[1766720910984,8.80790975,122.89,122.86,3.43623883]
[1766720911695,8.13790975,122.89,122.86,3.43623883]
[1766720911873,45.63941421,122.9,122.87,4.15623883]
[1766720911874,8.80674939,122.9,122.87,4.15623883]
[1766720912072,12.24298822,122.9,122.86,4.15623883]
[1766720912592,8.80674939,122.9,122.87,3.43623883]
[1766720913395,10.43767296,122.91,122.86,8.13891421]
[1766720913605,8.1355703,122.92,122.9,3.43623883]
[1766720913904,12.24180913,122.92,122.87,0.72]
[1766720914064,12.24180913,122.92,122.88,3.43623883]
[1766720915897,8.80639432,122.91,122.88,3.43623883]
[1766720916221,8.80639432,122.91,122.88,4.15623883]
[1766720919021,4.10623883,122.9,122.86,3.43623883]
[1766720919202,0.67,122.88,122.85,3.43623883]
[1766720920225,8.80816035,122.88,122.85,3.43623883]
[1766720921116,8.80816035,122.88,122.85,4.15623883]
[1766720921629,0.67,122.87,122.84,3.43623883]
[1766720922425,0.67,122.87,122.84,4.11623883]
[1766720923106,8.80876111,122.87,122.84,4.11623883]
[1766720924909,11.57499994,122.87,122.83,4.10623883]
[1766720925226,0.69,122.86,122.83,4.10623883]
[1766720926325,0.69,122.85,122.82,3.43623883]
[1766720926730,0.69,122.85,122.82,4.10623883]
[1766720927826,0.69,122.87,122.84,0.67]
[1766720928129,8.82869414,122.87,122.84,4.10623883]
[1766720928331,8.82869414,122.87,122.84,0.67]
[1766720928523,12.26493297,122.87,122.84,0.67]
[1766720930126,0.69,122.85,122.82,0.67]
[1766720930327,4.12623883,122.85,122.81,4.10623883]
[1766720930630,12.26493297,122.87,122.83,4.10623883]
[1766720931430,12.26493297,122.87,122.79,30.79675677]
[1766720931431,4.12623883,122.84,122.8,0.67]
[1766720931634,4.12623883,122.82,122.78,12.25065082]
[1766720931816,4.12623883,122.82,122.79,0.67]
[1766720932019,0.69,122.82,122.79,0.67]
[1766720933338,4.12623883,122.82,122.79,0.67]
[1766720933526,0.69,122.82,122.79,0.67]
[1766720933841,0.69,122.82,122.79,4.10623883]
[1766720934032,4.12623883,122.85,122.81,4.10623883]
[1766720934339,0.69,122.85,122.81,4.10623883]
[1766720936345,8.83015949,122.85,122.81,4.10623883]
[1766720936646,8.83015949,122.85,122.82,0.67]
[1766720936943,8.83015949,122.85,122.82,4.10623883]
[1766720937136,0.69,122.85,122.82,4.10623883]
[1766720937949,0.69,122.85,122.82,2.87104444]
[1766720938447,10.34066593,122.86,122.82,2.87104444]
[1766720938627,11.03066593,122.86,122.82,2.87104444]
[1766720939849,11.03066593,122.86,122.82,0.67]
[1766720940049,2.20104444,122.85,122.82,0.67]
[1766720940936,2.89104444,122.85,122.82,0.67]
[1766720941539,0.69,122.85,122.82,0.67]
[1766720941739,8.82962149,122.86,122.83,0.67]
[1766720941941,11.03066593,122.86,122.82,0.67]
[1766720942144,0.69,122.85,122.82,0.67]
[1766720943227,2.89104444,122.85,122.82,0.67]
[1766720943844,8.8300576,122.85,122.82,0.67]
[1766720944044,11.03110204,122.85,122.82,0.67]
[1766720946750,8.8305237,122.85,122.82,0.67]
[1766720946938,10.34156814,122.85,122.79,14.86]
[1766720947144,2.89104444,122.83,122.79,0.67]
[1766720947361,2.89104444,122.83,122.8,0.67]
[1766720947739,0.69,122.83,122.8,0.67]
[1766720951665,11.0324354,122.83,122.8,0.67]
[1766720952161,2.20104444,122.82,122.78,2.20104444]
[1766720952368,2.89104444,122.82,122.78,0.67]
[1766720952672,2.89104444,122.81,122.78,0.67]
[1766720952966,8.14332247,122.8,122.78,0.67]
[1766720953155,2.89104444,122.81,122.78,0.67]
[1766720953156,11.03383526,122.81,122.78,0.67]
[1766720954661,10.34383526,122.81,122.78,0.67]
[1766720954973,11.05332356,122.82,122.79,0.68]
[1766720955147,8.85227912,122.82,122.79,0.68]
[1766720955346,11.05332356,122.82,122.79,0.68]
[1766720956177,8.85227912,122.82,122.79,0.68]
[1766720956370,11.05332356,122.82,122.77,10.34621215]
[1766720956667,2.91104444,122.81,122.78,0.68]
[1766720957168,10.34332356,122.82,122.78,0.68]
[1766720958177,11.05332356,122.82,122.78,0.68]
[1766720959777,11.05332356,122.82,122.75,30.80363554]
[1766720959778,2.20104444,122.79,122.75,0.68]
[1766720960076,2.91104444,122.79,122.76,0.68]
[1766720962278,10.34466372,122.8,122.76,0.68]
[1766720962454,11.05466372,122.8,122.76,0.68]
[1766720965377,8.85361928,122.8,122.76,2.20104444]
[1766720965582,8.85361928,122.8,122.77,0.68]
[1766720966169,8.14361928,122.8,122.77,0.68]
[1766720966481,0.71,122.83,122.8,0.68]
[1766720967375,8.85133355,122.83,122.8,0.68]
[1766720969075,11.05237799,122.83,122.8,0.68]
[1766720969566,8.85133355,122.83,122.8,0.68]
[1766720971688,11.05237799,122.83,122.8,0.68]
[1766720972188,2.20104444,122.82,122.79,0.68]
[1766720974194,2.20104444,122.81,122.77,2.20104444]
[1766720974398,0.71,122.8,122.77,0.68]
[1766720974888,2.91104444,122.81,122.78,0.68]
[1766720975585,0.71,122.81,122.78,0.68]
[1766720976095,8.85276538,122.81,122.78,0.68]
[1766720976701,11.05380982,122.81,122.78,0.68]
[1766720977888,0.71,122.8,122.76,2.88104444]
[1766720978086,0.71,122.8,122.77,0.68]
[1766720978395,8.14276538,122.81,122.77,2.20104444]
[1766720978578,11.05380982,122.81,122.77,0.68]
[1766720978781,11.05380982,122.81,122.77,2.88104444]
[1766720979092,8.85276538,122.81,122.78,0.68]
[1766720980264,11.05380982,122.81,122.78,0.68]
[1766720986296,0.69,122.8,122.77,0.69]
[1766720986497,2.89104444,122.8,122.77,0.69]
[1766720988300,11.03458417,122.8,122.77,0.69]
[1766720992101,8.83340428,122.8,122.77,0.69]
[1766720993204,11.03444872,122.8,122.77,0.69]
[1766720993918,8.83340428,122.8,122.77,0.69]
[1766720998511,11.03396556,122.81,122.77,0.69]
[1766720998806,5.44517511,122.8,122.77,0.69]
[1766721001097,14.27850752,122.8,122.77,0.69]
[1766721001413,8.83333241,122.8,122.77,0.69]
[1766721001898,0.69,122.8,122.77,0.69]
[1766721003710,9.57440178,122.79,122.75,15.57]
[1766721003889,4.13218788,122.79,122.75,15.57]
[1766721004225,4.13218788,122.79,122.76,0.69]
[1766721004594,0.69,122.79,122.76,0.69]
[1766721005324,3.44218788,122.78,122.74,8.83710833]
[1766721005515,0.69,122.79,122.76,0.69]
[1766721006131,0.69,122.8,122.76,4.13218788]
[1766721006427,4.13218788,122.8,122.76,4.13218788]
[1766721006601,0.69,122.79,122.76,4.13218788]
[1766721007921,0.69,122.79,122.76,0.69]
[1766721008227,4.13218788,122.77,122.74,0.69]
[1766721008423,4.13218788,122.77,122.72,22.0280913]
[1766721008424,0.69,122.76,122.73,0.69]
[1766721008616,4.13218788,122.76,122.73,0.69]
[1766721010231,12.27826823,122.76,122.73,0.69]
[1766721011328,0.69,122.75,122.72,0.69]
[1766721011521,0.69,122.74,122.71,14.88]
[1766721011828,0.69,122.73,122.7,0.89]
[1766721012015,4.13218788,122.72,122.7,0.2]
[1766721012213,4.13218788,122.71,122.7,0.2]
[1766721012400,0.69,122.71,122.7,0.2]
[1766721013319,15.57,122.73,122.7,0.2]
[1766721014727,19.01218788,122.73,122.7,0.2]
[1766721015106,4.15218788,122.72,122.7,0.2]
[1766721015322,0.71,122.72,122.7,0.2]
[1766721015922,23.02852175,122.73,122.7,0.2]
[1766721016128,14.88,122.73,122.7,3.64218788]
[1766721016321,14.88,122.73,122.71,0.68]
[1766721016724,15.59,122.73,122.7,0.88]
[1766721017228,0.71,122.73,122.7,0.88]
[1766721017525,22.73671559,122.75,122.72,0.68]
[1766721018627,19.29452771,122.75,122.72,0.68]
[1766721018826,0.71,122.76,122.73,0.68]
[1766721019415,0.71,122.76,122.73,4.12218788]
[1766721019616,0.71,122.76,122.73,0.68]